Workbook

Sheet 例題31 非等温PBR
A1: 微分方程式数 | B1: 2 | F1: Pt= | G1: 2.96 | H1: MPa | M1: 元問題条件 | O1: 化学工学会編：化学工学便覧 7版 p. 868 | S1: L | T1: V | U1: 触媒量W | W1: 0.02 | X1: 870
A2: V= | B2: xA= | C2: T= | F2: T0= | G2: 520 | H2: °C | M2: L= | N2: 12 | O2: m | S2: m | T2: m3 | U2: kg | W2: 0.11 | X2: 870
A3: 0.11 | B3: 0.8027422559 | C3: 854.7686332 | F3: FA0= | G3: 1.331 | H3: mol/s | I3: CH4 | M3: R0= | N3: 0.054 | O3: m | P3: 反応管半径 | S3: 1 | T3: =3.14*$N$3^2*S3 -> 0.00915624 | U3: =S3*3.14*$N$3^2*$N$5 -> 10.987488
B4: xA'= | C4: T'= | F4: FB0= | G4: 4.66 | H4: mol/s | I4: H2O | M4: a= | N4: =2/N3 -> 37.03703704 | O4: /m | P4: (伝熱面積／反応器容積） | S4: 12 | T4: =3.14*$N$3^2*S4 -> 0.10987488 | U4: =S4*3.14*$N$3^2*$N$5 -> 131.849856
A5: 微分方程式→ | B5: =G12/G3 -> 3.202871236 | C5: =(-G14*G15*(C3-G16)+(-G12)*(G17))/(G9*G13) -> 231.4717165 | F5: FmolA | G5: =G3*(1-B3) -> 0.2625500574 | H5: mol/s | I5: CH4 | M5: ρb= | N5: 1200 | O5: kg/m3 | P5: 触媒層密度(仮）
F6: FmolB | G6: =G4-G3*B3 -> 3.591550057 | H6: mol/s | I6: H2O | M6: k0= | N6: 110 | O6: /s | P6: 例題31ではk0=11000とした | T6: =T4*210 -> 23.0737248 | U6: 92.3 | V6: m3
A7: 積分区間V=[a, | B7: 0 | F7: FmolC | G7: =3*G3*B3 -> 3.205349828 | H7: mol/s | I7: H2 | M7: R= | N7: 0.008314 | O7: kJ/mol-K=m3-kPa/mol-K
A8: b] | B8: 0.11 | F8: FmolD | G8: =G3*B3 -> 1.068449943 | H8: mol/s | I8: CO | M8: E= | N8: 95.4 | O8: kJ/mol | U8: COCO計算結果
A9: 積分刻み幅ΔV | B9: 0.005 | F9: ΣFi= | G9: =SUM(G5:G8) -> 8.127899885 | H9: mol/s | I9: 全モル流量 | M9: 仮T= | N9: 520 | O9: °C | U9: V[m3] | V9: L[m] | W9: FA | X9: xA | Y9: V[m3] | Z9: T[°C]
A10: 計算結果 | F10: cA0= | G10: =(G3/(G3+G4))*G1/0.00000831/(G2+273.15) -> 99.77324437 | H10: mol/m3 | M10: xA | N10: 0 | U10: 0 | V10: 0 | W10: 4.788 | X10: =1-W10/$W$10 -> 0 | Y10: 0 | Z10: 520
A11: V[m3] | B11: xA | C11: T[℃] | F11: cA= | G11: =(G5/G9)*G1/0.00000831/(C3+273.15) -> 10.20109256 | H11: mol/m3 | M11: 仮cA | N11: =N21*(1-N10) -> 99.75021686 | O11: mol/m3 | U11: 0.011 | V11: =U11/(3.14*$N$3^2) -> 1.2013665 | W11: 4.4 | X11: 0.08103592314 | Y11: =Y12/2 -> 0.0055 | Z11: 749.5
A12: 0 | B12: 0 | C12: 520 | E12: ←初期値 | F12: (-rA')ρb | G12: =11000*G11*EXP(-1*95.4/0.00831/(C3+273.15)) -> 4.263021616 | H12: mol/m3-s | M12: (-rA')ρb | N12: =N6*EXP(-N8/N7/(N9+273.15))*N11 -> 0.005718768526 | O12: mol/m3-s | U12: 0.022 | V12: =U12/(3.14*$N$3^2) -> 2.402733 | W12: 3.79 | X12: 0.2084377611 | Y12: 0.011 | Z12: 796
A13: 0.005 | B13: 0.03546962197 | C13: 728.2052906 | F13: Cp= | G13: 42 | H13: J/mol-K | M13: ε= | N13: 0.432 | U13: 0.033 | V13: 3.604099499 | W13: 3.23 | X13: 0.3253968254 | Y13: 0.022 | Z13: 812
A14: 0.01 | B14: 0.08935544406 | C14: 786.314595 | F14: U= | G14: 1700 | H14: J/m2-s-K | I14: 伝熱係数 | M14: T0= | N14: 520 | O14: ℃ | P14: 入口ガス温度 | U14: 0.044 | V14: 4.805465999 | W14: 2.76 | X14: 0.4235588972 | Y14: 0.033 | Z14: 820
A15: 0.015 | B15: 0.1483114491 | C15: 806.3362764 | F15: a= | G15: 37 | H15: /m | I15: (伝熱面積／反応器容積） | N15: 820 | O15: ℃ | P15: 出口ガス温度 | U15: 0.055 | V15: 6.006832499 | W15: 2.34 | X15: 0.5112781955 | Y15: 0.044 | Z15: 826
A16: 0.02 | B16: 0.2067123418 | C16: 814.6133689 | F16: Ta= | G16: 870 | H16: °C | I16: 反応管外側温度 | M16: P | N16: 2.96 | O16: MPa | P16: 入口圧力 | U16: 0.066 | V16: 7.208198999 | W16: 1.99 | X16: 0.5843776107 | Y16: 0.055 | Z16: 832
A17: 0.025 | B17: 0.2623628833 | C17: 819.2835306 | F17: ΔrH= | G17: 206200 | H17: J/mol | I17: 吸熱反応 | N17: 2.6 | O17: MPa | P17: 出口圧力 | U17: 0.077 | V17: 8.409565499 | W17: 1.68 | X17: 0.649122807 | Y17: 0.066 | Z17: 837
A18: 0.03 | B18: 0.3147005883 | C18: 822.8090118 | M18: Ta= | N18: 850 | O18: ℃ | P18: 反応管外側温度 | U18: 0.088 | V18: 9.610931998 | W18: 1.41 | X18: 0.7055137845 | Y18: 0.077 | Z18: 842
A19: 0.035 | B19: 0.3637129777 | C19: 825.8963381 | M19: -ΔrH | N19: -206.2 | O19: kJ/mol | U19: 0.099 | V19: 10.8122985 | W19: 1.19 | X19: 0.7514619883 | Y19: 0.088 | Z19: 846
A20: 0.04 | B20: 0.4095381031 | C20: 828.7459553 | M20: U= | N20: =1/((1/83)+(1/14)) -> 11.97938144 | O20: J/(m2 s K) | P20: 伝熱係数 | U20: 0.11 | V20: 12.013665 | W20: 1 | X20: 0.791144528 | Y20: 0.099 | Z20: 849
A21: 0.045 | B21: 0.4523465521 | C21: 831.4183752 | M21: cA0 | N21: =N16*1000*O25/N7/(N14+273.15) -> 99.75021686 | O21: mol/m3 | Y21: 0.11 | Z21: 852
A22: 0.05 | B22: 0.4923100526 | C22: 833.9357917
A23: 0.055 | B23: 0.5295938721 | C23: 836.3096056 | M23: 210本で | O23: 反応管入口 | P23: 出口
A24: 0.06 | B24: 0.5643553813 | C24: 838.547883 | M24: ΣFmol | N24: kmol/h | O24: =O29+O30 -> 4529.220779 | P24: =SUM(P29:P32) -> 6622.727273
A25: 0.065 | B25: 0.5967441209 | C25: 840.6574354 | M25: A CH4 | N25: mole frac | O25: =O29/(O29+O30) -> 0.2222222222 | P25: =P29/(SUM(P29:P32)) -> 0.03495440729
A26: 0.07 | B26: 0.6269021812 | C26: 842.6444482 | M26: B H2O | N26: mole frac | O26: =O30/(O29+O30) -> 0.7777777778 | P26: =P30/(SUM(P29:P32)) -> 0.4969604863
A27: 0.075 | B27: 0.6549646021 | C27: 844.5147024 | M27: C H2 | N27: mole frac | P27: =P31/(SUM(P29:P32)) -> 0.3510638298
A28: 0.08 | B28: 0.6810597318 | C28: 846.2736756 | M28: D CO | N28: mole frac | P28: =P32/(SUM(P29:P32)) -> 0.1170212766
A29: 0.085 | B29: 0.7053095382 | C29: 847.9266006 | M29: FmolA CH4 | N29: kmol/h | O29: =P32/P33 -> 1006.493506 | P29: =O29*(1-P33) -> 231.4935065
A30: 0.09 | B30: 0.7278298792 | C30: 849.4785036 | M30: FmolB H2O | N30: kmol/h | O30: =O29*3.5 -> 3522.727273 | P30: =O30-O29*(1-P33) -> 3291.233766 | Q30: 入口で(H2O)/(CH4)=3.5
A31: 0.095 | B31: 0.7487307427 | C31: 850.9342329 | M31: FmolC H2 | N31: kmol/h | P31: =3100*3/4 -> 2325 | Q31: 出口で水素とCOの合計量が3100
A32: 0.1 | B32: 0.7681164621 | C32: 852.2984777 | M32: FmolD CO | N32: kmol/h | P32: =3100/4 -> 775
A33: 0.105 | B33: 0.7860859162 | C33: 853.5757824 | M33: xA out | P33: 0.77 | Q33: 反応管出口でのメタン反応率0.77
A34: 0.11 | B34: 0.8027327169 | C34: 854.7705553 | M34: 反応管1本あたり
M35: ΣFmol in | N35: kmol/h | O35: =O24/210 -> 21.567718 | P35: =P24/210 -> 31.53679654
N36: mol/s | O36: =O35*1000/3600 -> 5.991032777 | P36: =P35*1000/3600 -> 8.76022126
M37: FmolA CH4 | N37: mol/s | O37: =O36*O25 -> 1.331340617 | P37: =O37*(1-P41) -> 0.3062083419
M38: FmolB H2O | N38: mol/s | O38: =O36*O26 -> 4.65969216 | P38: =O38-O37*(1-P41) -> 4.353483818
M39: FmolC H2 | N39: mol/s | P39: =3*O37*P41 -> 3.075396825
M40: FmolD CO | N40: mol/s | P40: =O37*P41 -> 1.025132275
M41: xA out | P41: 0.77
